Business Unit,Business Code,Service Code,Service Label,Organisational Unit,Expenditure,Net Payments,Transaction No,Payment date,Supplier ID,Supplier Name
North West Leicestershire District Council,31UH,CULTYP,Leisure & Culture,Cultural Services Children & YoungPeople,Extended Services,"3,991.20",1291555,03/09/2014,A040553,Leicestershire CAB
North West Leicestershire District Council,31UH,CULTYP,Leisure & Culture,Cultural Services Children & YoungPeople,Extended Services,"1,450.00",1291556,03/09/2014,A029931,Kid Rapt Ltd
North West Leicestershire District Council,31UH,CS,Communications,Corporate - Customer Services,Equipment Operating Leases,"2,552.28",1291737,03/09/2014,A031590,Neopost Finance Limited
North West Leicestershire District Council,31UH,NACCS,Neighbourhoods & Communities,N & C Community Safety,Extended Services,"6,150.00",1291735,03/09/2014,A041599,Community health and Learning Foundation Ltd (CIC)
North West Leicestershire District Council,31UH,NACCS,Neighbourhoods & Communities,N & C Community Safety,Extended Services,"6,390.00",1291734,03/09/2014,A039843,Women's Aid Leicestershire Ltd
North West Leicestershire District Council,31UH,LDLS,Legal & Democratic,Legal Services,External Legal Fees & Advice,"1,300.00",1291716,03/09/2014,A041711,Mr Timothy Leader
North West Leicestershire District Council,31UH,ENOT,Street Management,Environment Transport,Water Charges (Metered),"1,623.95",1291713,03/09/2014,A001468,Severn Trent Water Limited
North West Leicestershire District Council,31UH,EES,Environmental Health,Environmental Services,Grants,972.24,1291712,03/09/2014,A001092,John Merison BMC
North West Leicestershire District Council,31UH,EES,Environmental Health,Environmental Services,Grants,"3,671.19",1291710,03/09/2014,A001092,John Merison BMC
North West Leicestershire District Council,31UH,ENOT,Street Management,Environment Transport,Repairs - Parts,634.56,1288510,03/09/2014,A039355,Johnston Sweepers Ltd
North West Leicestershire District Council,31UH,LDLS,Legal & Democratic,Legal Services,Legal & Professional Services,"1,008.00",1291963,10/09/2014,A000251,Browne Jacobson
North West Leicestershire District Council,31UH,CS,Communications,Corporate - Customer Services,Postages,"3,000.00",1291836,03/09/2014,A000079,Neopost Limited
North West Leicestershire District Council,31UH,HRAHRM,Housing Repairs,HRA Housing Repairs & Maintenance,Front Door - Timber,"471,187.57",1292265,10/09/2014,A039980,Kier Services Maintenance East Ltd
North West Leicestershire District Council,31UH,HRAHRM,Housing Repairs,HRA Housing Repairs & Maintenance,Consultants Fees,636.15,1292267,10/09/2014,A039980,Kier Services Maintenance East Ltd
North West Leicestershire District Council,31UH,HRAHM,Housing,HRA Housing Management,Legal & Professional Services,"2,410.00",1292308,09/09/2014,A033948,HMCTS
North West Leicestershire District Council,31UH,HR,Corporate Director,Human Resources,Criminal Records Bureau,528.00,1292309,09/09/2014,A027625,The Disclosure & Barring Service
North West Leicestershire District Council,31UH,HRAHRM,Housing Repairs,HRA Housing Repairs & Maintenance,Housing-Building materials,"81,036.77",1292310,09/09/2014,A036453,Collective Enterprises Ltd
North West Leicestershire District Council,31UH,HRAHM,Housing,HRA Housing Management,Ashby De la Zouche,"2,516.00",1292367,10/09/2014,A041735,The Rowans Care Home
North West Leicestershire District Council,31UH,PROPCL,Property Services,Property Commercial Lettings,Telephones,631.01,1292325,10/09/2014,A000233,British Telecommunications P
North West Leicestershire District Council,31UH,PROPFM,Property Services,Property Facilities Management,Electricity,"4,066.51",1292323,10/09/2014,A030266,Southern Electric
North West Leicestershire District Council,31UH,HPLC,Leisure Centres,Hood Park Leisure Centre,Electricity,"1,614.98",1292457,17/09/2014,A030266,Southern Electric
North West Leicestershire District Council,31UH,HPLC,Leisure Centres,Hood Park Leisure Centre,Water Charges (Metered),830.00,1292458,17/09/2014,A001468,Severn Trent Water Limited
North West Leicestershire District Council,31UH,HPLC,Leisure Centres,Hood Park Leisure Centre,Water Charges (Metered),"1,328.53",1292459,17/09/2014,A001468,Severn Trent Water Limited
North West Leicestershire District Council,31UH,EES,Environmental Health,Environmental Services,Grants,"9,923.50",1292560,17/09/2014,A031587,Sandaland Properties (Measham) Ltd
North West Leicestershire District Council,31UH,EEHL,Environmental Health,Environmental Health & Licensing,Grants,625.00,1292782,24/09/2014,A041584,ADN Construction Ltd
North West Leicestershire District Council,31UH,HRAHRM,Housing Repairs,HRA Housing Repairs & Maintenance,Consultants Fees,"4,620.60",1292800,24/09/2014,A039973,Lovell Partnerships Ltd
North West Leicestershire District Council,31UH,HRAHRM,Housing Repairs,HRA Housing Repairs & Maintenance,Front Door - Timber,"706,756.44",1292801,24/09/2014,A039973,Lovell Partnerships Ltd
North West Leicestershire District Council,31UH,ICT,Information Technology,ICT Services,Photo Copier - Copy Charges Rental,"2,105.08",1292575,17/09/2014,A040459,Canon UK Ltd
North West Leicestershire District Council,31UH,ICT,Information Technology,ICT Services,Telephone Charge / Rental,"5,562.86",1292579,17/09/2014,A008908,Virgin Media Business
North West Leicestershire District Council,31UH,HRAPBS,Housing,HRA Performance & Business Support,Legal & Professional Services,787.00,1292591,17/09/2014,A040053,Flourish Partnership Ltd
North West Leicestershire District Council,31UH,HS,Housing Strategy,Community - Housing Strategy,Rent Deposit Scheme,510.00,1292762,17/09/2014,A038365,Newton Fallowell
North West Leicestershire District Council,31UH,HLC,Leisure Centres,Hermitage Leisure Centre,Water Charges (Metered),"1,502.46",1292778,17/09/2014,A001468,Severn Trent Water Limited
North West Leicestershire District Council,31UH,LDELC,Legal & Democratic,Electoral & Land Charges,Postages,"1,800.00",1292856,24/09/2014,A001418,Royal Mail Group Plc
North West Leicestershire District Council,31UH,EEHL,Environmental Health,Environmental Health & Licensing,Grants,"4,136.00",1292876,24/09/2014,A000726,Hamilton Bond
North West Leicestershire District Council,31UH,HRAHM,Housing,HRA Housing Management,Tipping Charges,816.05,1292966,24/09/2014,A035471,Ward Recycling
North West Leicestershire District Council,31UH,EES,Environmental Health,Environmental Services,Grants,"12,800.00",1292967,24/09/2014,A027781,J Rennocks & Son Ltd
North West Leicestershire District Council,31UH,EES,Environmental Health,Environmental Services,Stray Dog Service,"1,288.14",1292968,24/09/2014,A000385,College Garth Boarding Kenn
North West Leicestershire District Council,31UH,ENOT,Street Management,Environment Transport,Licences - Road Fund Licence,650.00,1292969,24/09/2014,A008559,Post Office Limited
North West Leicestershire District Council,31UH,HS,Housing Strategy,Community - Housing Strategy,Ellistown etc,"3,028.57",1292972,24/09/2014,A041761,Leicestershire County Care Ltd
North West Leicestershire District Council,31UH,HRAHM,Housing,HRA Housing Management,Coalville,"4,750.00",1293051,24/09/2014,A041735,The Rowans Care Home
North West Leicestershire District Council,31UH,HRAHRM,Housing Repairs,HRA Housing Repairs & Maintenance,Gas Servicing,871.14,1291620,03/09/2014,A033342,J Tomlinson Ltd
North West Leicestershire District Council,31UH,HRAHRM,Housing Repairs,HRA Housing Repairs & Maintenance,Gas Servicing,871.14,1291619,03/09/2014,A033342,J Tomlinson Ltd
North West Leicestershire District Council,31UH,HRAHRM,Housing Repairs,HRA Housing Repairs & Maintenance,Gas Servicing,871.14,1291617,03/09/2014,A033342,J Tomlinson Ltd
North West Leicestershire District Council,31UH,HRAHRM,Housing Repairs,HRA Housing Repairs & Maintenance,Gas Servicing,871.14,1291616,03/09/2014,A033342,J Tomlinson Ltd
North West Leicestershire District Council,31UH,HRAHRM,Housing Repairs,HRA Housing Repairs & Maintenance,Gas Servicing,871.14,1291615,03/09/2014,A033342,J Tomlinson Ltd
North West Leicestershire District Council,31UH,HRAHRM,Housing Repairs,HRA Housing Repairs & Maintenance,Gas Servicing,871.14,1291614,03/09/2014,A033342,J Tomlinson Ltd
North West Leicestershire District Council,31UH,HRAHRM,Housing Repairs,HRA Housing Repairs & Maintenance,Gas Servicing,871.14,1291613,03/09/2014,A033342,J Tomlinson Ltd
North West Leicestershire District Council,31UH,HRAHRM,Housing Repairs,HRA Housing Repairs & Maintenance,Gas Servicing,871.14,1291612,03/09/2014,A033342,J Tomlinson Ltd
North West Leicestershire District Council,31UH,HRAHRM,Housing Repairs,HRA Housing Repairs & Maintenance,Gas Servicing,871.14,1291611,03/09/2014,A033342,J Tomlinson Ltd
North West Leicestershire District Council,31UH,HRAHRM,Housing Repairs,HRA Housing Repairs & Maintenance,Gas Servicing,871.14,1291610,03/09/2014,A033342,J Tomlinson Ltd
North West Leicestershire District Council,31UH,HRAHRM,Housing Repairs,HRA Housing Repairs & Maintenance,Concrete repairs,850.00,1291648,03/09/2014,A041348,Onsite Specialist Maintenance Ltd
North West Leicestershire District Council,31UH,HRAHRM,Housing Repairs,HRA Housing Repairs & Maintenance,Concrete repairs,850.00,1291649,03/09/2014,A041348,Onsite Specialist Maintenance Ltd
North West Leicestershire District Council,31UH,HRAHRM,Housing Repairs,HRA Housing Repairs & Maintenance,Concrete repairs,"1,700.00",1291650,03/09/2014,A041348,Onsite Specialist Maintenance Ltd
North West Leicestershire District Council,31UH,HRAHRM,Housing Repairs,HRA Housing Repairs & Maintenance,Concrete repairs,"1,700.00",1291651,03/09/2014,A041348,Onsite Specialist Maintenance Ltd
North West Leicestershire District Council,31UH,HRAHRM,Housing Repairs,HRA Housing Repairs & Maintenance,House Cleaning and Removals,"1,113.96",1291652,03/09/2014,A031086,Premier Waste and Recycling
North West Leicestershire District Council,31UH,HRAHRM,Housing Repairs,HRA Housing Repairs & Maintenance,House Cleaning and Removals,534.96,1291653,03/09/2014,A031086,Premier Waste and Recycling
North West Leicestershire District Council,31UH,HRAHRM,Housing Repairs,HRA Housing Repairs & Maintenance,House Cleaning and Removals,621.61,1291655,03/09/2014,A031086,Premier Waste and Recycling
North West Leicestershire District Council,31UH,HRAHRM,Housing Repairs,HRA Housing Repairs & Maintenance,House Cleaning and Removals,553.79,1291657,03/09/2014,A031086,Premier Waste and Recycling
North West Leicestershire District Council,31UH,HRAHRM,Housing Repairs,HRA Housing Repairs & Maintenance,House Cleaning and Removals,647.05,1292218,10/09/2014,A031086,Premier Waste and Recycling
North West Leicestershire District Council,31UH,HRAHRM,Housing Repairs,HRA Housing Repairs & Maintenance,Housing repairs,"1,731.71",1292243,10/09/2014,A031787,Laker BMS Ltd
North West Leicestershire District Council,31UH,HRAHRM,Housing Repairs,HRA Housing Repairs & Maintenance,House Cleaning and Removals,618.78,1292601,17/09/2014,A031086,Premier Waste and Recycling
North West Leicestershire District Council,31UH,HRAHRM,Housing Repairs,HRA Housing Repairs & Maintenance,House Cleaning and Removals,618.77,1292603,17/09/2014,A031086,Premier Waste and Recycling
North West Leicestershire District Council,31UH,HRAHRM,Housing Repairs,HRA Housing Repairs & Maintenance,House Cleaning and Removals,728.89,1292597,17/09/2014,A031086,Premier Waste and Recycling
North West Leicestershire District Council,31UH,HRAHRM,Housing Repairs,HRA Housing Repairs & Maintenance,Solid Fuel Supplies,675.00,1292661,17/09/2014,A035675,Elite Sweep Service
North West Leicestershire District Council,31UH,HRAHRM,Housing Repairs,HRA Housing Repairs & Maintenance,Contract Payments (Dws) Ext,622.33,1292663,17/09/2014,A026237,British Gas Trading Limited
North West Leicestershire District Council,31UH,HRAHRM,Housing Repairs,HRA Housing Repairs & Maintenance,Boiler - Gas,622.33,1292664,17/09/2014,A026237,British Gas Trading Limited
North West Leicestershire District Council,31UH,HRAHRM,Housing Repairs,HRA Housing Repairs & Maintenance,Housing repairs,684.25,1292700,17/09/2014,A031787,Laker BMS Ltd
North West Leicestershire District Council,31UH,HRAHRM,Housing Repairs,HRA Housing Repairs & Maintenance,Housing repairs,519.99,1292706,17/09/2014,A031787,Laker BMS Ltd
North West Leicestershire District Council,31UH,HRAHRM,Housing Repairs,HRA Housing Repairs & Maintenance,House Cleaning and Removals,878.79,1292980,24/09/2014,A031086,Premier Waste and Recycling
North West Leicestershire District Council,31UH,HRAHRM,Housing Repairs,HRA Housing Repairs & Maintenance,House Cleaning and Removals,"1,754.16",1292985,24/09/2014,A031086,Premier Waste and Recycling
North West Leicestershire District Council,31UH,HRAHRM,Housing Repairs,HRA Housing Repairs & Maintenance,Gas Servicing,"1,031.80",1292987,24/09/2014,A033342,J Tomlinson Ltd
North West Leicestershire District Council,31UH,ENOP,Street Management,Environment Parks,External Materials,"1,800.00",1291287,03/09/2014,A039324,Four Counties Tree Specialists Ltd
North West Leicestershire District Council,31UH,ENOT,Street Management,Environment Transport,Transport Costs - Tyres,"1,030.00",1291539,03/09/2014,A035175,Malvern Tyres
North West Leicestershire District Council,31UH,ENOT,Street Management,Environment Transport,Non Scheduled Maintenance - Parts,"1,175.90",1291549,03/09/2014,A035175,Malvern Tyres
North West Leicestershire District Council,31UH,PROPCL,Property Services,Property Commercial Lettings,Contract Cleaning,506.18,1291501,03/09/2014,A003037,Coalville Cleaning Services
North West Leicestershire District Council,31UH,EEHL,Environmental Health,Environmental Health & Licensing,Vet Inspection,675.35,1291498,03/09/2014,A033670,Eville And Jones
North West Leicestershire District Council,31UH,LDLS,Legal & Democratic,Legal Services,Training Expenses,"1,350.00",1291485,03/09/2014,A030537,Fields of Learning
North West Leicestershire District Council,31UH,ENOP,Street Management,Environment Parks,Operational Equipment - Purchases,565.80,1291567,03/09/2014,A041668,M Bissell Display Ltd
North West Leicestershire District Council,31UH,HPLC,Leisure Centres,Hood Park Leisure Centre,Swimming Badges,607.05,1290180,03/09/2014,A001616,Swimming Teachers Association
North West Leicestershire District Council,31UH,ENOT,Street Management,Environment Transport,Repairs - Parts,603.50,1290183,03/09/2014,A035291,Mertrux
North West Leicestershire District Council,31UH,HPLC,Leisure Centres,Hood Park Leisure Centre,Royalties,"3,385.10",1291582,03/09/2014,A001293,The Performing Right Society
North West Leicestershire District Council,31UH,HLC,Leisure Centres,Hermitage Leisure Centre,Summer/School Holiday Activities,"1,355.00",1291581,03/09/2014,A027406,Stathams Coaches
North West Leicestershire District Council,31UH,ENOT,Street Management,Environment Transport,Hire Of Transport,710.00,1291666,03/09/2014,A038744,First National Plant Rental Limited
North West Leicestershire District Council,31UH,ENOT,Street Management,Environment Transport,Purchases,"18,047.84",1291667,03/09/2014,A040946,Hall Fuels (Division of Watson Petroleum
North West Leicestershire District Council,31UH,ENOT,Street Management,Environment Transport,Operational Equipment,"1,730.00",1291668,03/09/2014,A032890,DR Baling Wire Manufacturers Ltd
North West Leicestershire District Council,31UH,ICT,Information Technology,ICT Services,Consumable Materials,504.82,1291669,03/09/2014,A038178,Antalis Limited
North West Leicestershire District Council,31UH,ENOT,Street Management,Environment Transport,Repairs - Parts,903.55,1291687,03/09/2014,A001131,Mobile Hydraulics Ltd
North West Leicestershire District Council,31UH,PROPFM,Property Services,Property Facilities Management,General Repairs,"1,046.93",1291714,03/09/2014,A028261,TECSERV UK LIMITED
North West Leicestershire District Council,31UH,CHEX,Chief Exec,Chief Executive,External Legal Fees & Advice,760.00,1291725,03/09/2014,A041694,Edwards & Edwards Consultancy Ltd
North West Leicestershire District Council,31UH,PROPFM,Property Services,Property Facilities Management,General Repairs,820.02,1291728,03/09/2014,A028261,TECSERV UK LIMITED
North West Leicestershire District Council,31UH,ENOT,Street Management,Environment Transport,Hire Of Operational Equipment,"2,228.20",1291740,03/09/2014,A024295,County Drains Leicester Ltd
North West Leicestershire District Council,31UH,CHEX,Chief Exec,Chief Executive,External Legal Fees & Advice,"1,240.00",1291724,03/09/2014,A041694,Edwards & Edwards Consultancy Ltd
North West Leicestershire District Council,31UH,NACCS,Neighbourhoods & Communities,N & C Community Safety,Expenditure against earmarked reserve,834.00,1291830,03/09/2014,A040709,Warning Zone Ltd
North West Leicestershire District Council,31UH,PROPCL,Property Services,Property Commercial Lettings,General Repairs,584.79,1291869,10/09/2014,A001092,John Merison BMC
North West Leicestershire District Council,31UH,PROPCL,Property Services,Property Commercial Lettings,Postages,"2,020.00",1291873,10/09/2014,A008204,Purchase Power
North West Leicestershire District Council,31UH,PROPFM,Property Services,Property Facilities Management,Equipment Operating Leases,516.05,1291874,10/09/2014,A032630,Pitney Bowes Finance Plc
North West Leicestershire District Council,31UH,CHEX,Chief Exec,Chief Executive,External Legal Fees & Advice,891.95,1291880,10/09/2014,A041332,Sharp Planning Plus Ltd
North West Leicestershire District Council,31UH,ENOP,Street Management,Environment Parks,Training Expenses,515.00,1291700,10/09/2014,A027792,Keith Cook Training Services
North West Leicestershire District Council,31UH,HLC,Leisure Centres,Hermitage Leisure Centre,Service Contracts,510.00,1291932,10/09/2014,A028325,Quality Water Company
North West Leicestershire District Council,31UH,HLC,Leisure Centres,Hermitage Leisure Centre,General Repairs,"1,607.06",1291941,10/09/2014,A027779,Horton Automatics Limited
North West Leicestershire District Council,31UH,PROPFM,Property Services,Property Facilities Management,General Repairs,560.87,1291948,10/09/2014,A030887,T Denman & Sons (Melton Mowbray) Ltd
North West Leicestershire District Council,31UH,EDC,Planning & Development,Environment - Development Control,Advertising,683.18,1291861,10/09/2014,A001395,Euro RSCG People T/A Havas People Ltd
North West Leicestershire District Council,31UH,EDC,Planning & Development,Environment - Development Control,Advertising,785.87,1291862,10/09/2014,A001395,Euro RSCG People T/A Havas People Ltd
North West Leicestershire District Council,31UH,EDC,Planning & Development,Environment - Development Control,Advertising,770.87,1291863,10/09/2014,A001395,Euro RSCG People T/A Havas People Ltd
North West Leicestershire District Council,31UH,HPLC,Leisure Centres,Hood Park Leisure Centre,General Repairs,"1,495.18",1291989,10/09/2014,A001092,John Merison BMC
North West Leicestershire District Council,31UH,ENOP,Street Management,Environment Parks,External Materials,"1,944.00",1291982,10/09/2014,A033650,Plantscape Ltd
North West Leicestershire District Council,31UH,HPLC,Leisure Centres,Hood Park Leisure Centre,Equipment For Resale,877.50,1291990,10/09/2014,A001833,Zoggs International Ltd
North West Leicestershire District Council,31UH,ENOT,Street Management,Environment Transport,Purchases,600.63,1292286,10/09/2014,A009933,Westbury Industrial Supplies
North West Leicestershire District Council,31UH,HR,Corporate Director,Human Resources,External Legal Fees & Advice,"1,670.00",1292305,10/09/2014,A038185,Acas
North West Leicestershire District Council,31UH,HRAPBS,Housing,HRA Performance & Business Support,Legal & Professional Services,787.00,1290068,10/09/2014,A040053,Flourish Partnership Ltd
North West Leicestershire District Council,31UH,ICT,Information Technology,ICT Services,Admin Equipment - Maintenance,891.00,1291866,10/09/2014,A035637,Jacarta Ltd
North West Leicestershire District Council,31UH,ECCTV,Planning & Development,Environment - Town Centre/CCTV,Agency Staff,"4,028.99",1292289,10/09/2014,A038132,Premier Security Services (Midlands) Lim
North West Leicestershire District Council,31UH,ECP,Planning & Development,Environment Community Planning,District Wide Activities,"1,100.00",1291897,10/09/2014,A036941,Leicestershire County Cricket Club
North West Leicestershire District Council,31UH,PROPFM,Property Services,Property Facilities Management,Asset Protection,516.00,1291946,10/09/2014,A030887,T Denman & Sons (Melton Mowbray) Ltd
North West Leicestershire District Council,31UH,HLBC,Leisure Centres,Hermitage Bar & Catering,Bar Provisions,614.89,1292333,10/09/2014,A039915,LWC - Birmingham
North West Leicestershire District Council,31UH,HRAPBS,Housing,HRA Performance & Business Support,Expenditure against earmarked reserve,"10,450.00",1292369,10/09/2014,A041321,Oneserve Ltd
North West Leicestershire District Council,31UH,ICT,Information Technology,ICT Services,Admin Equipment - Maintenance,"1,250.00",1291867,10/09/2014,A001298,Phoenix Software Limited
North West Leicestershire District Council,31UH,HRAHM,Housing,HRA Housing Management,Albert Vilage etc,960.00,1292255,10/09/2014,A041724,Silveroaks Residential Care Home
North West Leicestershire District Council,31UH,ICT,Information Technology,ICT Services,Admin Equipment - Maintenance,"1,824.58",1292463,17/09/2014,A032826,Freedom Communications (UK) Ltd
North West Leicestershire District Council,31UH,HRAPBS,Housing,HRA Performance & Business Support,Training Expenses,829.17,1292439,17/09/2014,A040435,Kaplan Financial
North West Leicestershire District Council,31UH,CHEX,Chief Exec,Chief Executive,Interim Support,800.00,1292445,17/09/2014,A040743,Janice Milsom
North West Leicestershire District Council,31UH,ENOP,Street Management,Environment Parks,External Materials,"1,500.00",1292491,17/09/2014,A037180,First Central Developments Limited
North West Leicestershire District Council,31UH,ENOWM,Street Management,Environment Waste Management,General Materials,"9,900.00",1292473,17/09/2014,A041084,Craemer Uk Limited
North West Leicestershire District Council,31UH,LDLS,Legal & Democratic,Legal Services,Furniture,510.00,1292477,17/09/2014,A000958,ESPO
North West Leicestershire District Council,31UH,ENOWM,Street Management,Environment Waste Management,General Materials,"19,309.50",1292486,17/09/2014,A024906,Straight Plc
North West Leicestershire District Council,31UH,PROPFM,Property Services,Property Facilities Management,General Repairs,518.00,1292487,17/09/2014,A028261,TECSERV UK LIMITED
North West Leicestershire District Council,31UH,HLC,Leisure Centres,Hermitage Leisure Centre,Maintenance/Office Expenditure,635.98,1292002,17/09/2014,A001092,John Merison BMC
North West Leicestershire District Council,31UH,CP,Communications,Corporate - Communications,Licences,767.17,1292511,17/09/2014,A011217,The Copyright Licensing Agen
North West Leicestershire District Council,31UH,ENOWM,Street Management,Environment Waste Management,General Materials,"6,055.00",1289919,17/09/2014,A041084,Craemer Uk Limited
North West Leicestershire District Council,31UH,ENOWM,Street Management,Environment Waste Management,Machinery & Equipment,"2,000.00",1291747,17/09/2014,A041243,Whitespace Work Software Ltd
North West Leicestershire District Council,31UH,ENOT,Street Management,Environment Transport,Transport Costs - Tyres,"4,367.28",1292365,17/09/2014,A033268,Bandvulc Tyres Ltd
North West Leicestershire District Council,31UH,EDC,Planning & Development,Environment - Development Control,Advertising,585.48,1292518,17/09/2014,A001395,Euro RSCG People T/A Havas People Ltd
North West Leicestershire District Council,31UH,EEHL,Environmental Health,Environmental Health & Licensing,Vet Inspection,649.38,1292523,17/09/2014,A033670,Eville And Jones
North West Leicestershire District Council,31UH,PROPFM,Property Services,Property Facilities Management,Contract Payments (Other) Ext,"27,242.80",1292587,17/09/2014,A016357,Dura-Sport (Leisure Care) Ltd
North West Leicestershire District Council,31UH,LDCE,Legal & Democratic,Civic Expenses,Other Miscellaneous Expenses,"2,000.00",1292592,17/09/2014,A041342,Xpress Software Solutions
North West Leicestershire District Council,31UH,ICT,Information Technology,ICT Services,Expenditure against earmarked reserve,"1,189.21",1292593,17/09/2014,A025151,Probrand Limited
North West Leicestershire District Council,31UH,HLC,Leisure Centres,Hermitage Leisure Centre,Service Contracts,617.76,1292763,17/09/2014,A029510,Siemens Financial Services Ltd
North West Leicestershire District Council,31UH,HR,Corporate Director,Human Resources,Operational Equipment,826.90,1292583,17/09/2014,A028815,HS Direct Ltd
North West Leicestershire District Council,31UH,ENOT,Street Management,Environment Transport,Purchases,904.80,1292558,17/09/2014,A037391,Emo Oil Limited
North West Leicestershire District Council,31UH,HLC,Leisure Centres,Hermitage Leisure Centre,Service Contracts,"11,695.00",1292786,24/09/2014,A024642,Gladstone MRM Ltd
North West Leicestershire District Council,31UH,ENOGT,Street Management,Environment General Technician,Routine Ground Maintenance,697.35,1292790,24/09/2014,A000438,Cuckoo Gap Limited
North West Leicestershire District Council,31UH,ENOGT,Street Management,Environment General Technician,Contract Payments (Other) Ext,"5,376.81",1292791,24/09/2014,A000438,Cuckoo Gap Limited
North West Leicestershire District Council,31UH,ENOGT,Street Management,Environment General Technician,Routine Ground Maintenance,621.47,1292794,24/09/2014,A000438,Cuckoo Gap Limited
North West Leicestershire District Council,31UH,AUDIT,Legal & Democratic,Audit Services,Training Expenses,"1,800.00",1292798,24/09/2014,A041610,Risk & Assurance Insights Limited
North West Leicestershire District Council,31UH,HR,Corporate Director,Human Resources,Expenditure against earmarked reserve,"8,500.00",1292584,17/09/2014,A039508,Learning Pool Ltd
North West Leicestershire District Council,31UH,PROPFM,Property Services,Property Facilities Management,General Repairs,"1,621.00",1292585,17/09/2014,A037013,Interserve (formerly Rentokil Initial UK
North West Leicestershire District Council,31UH,HR,Corporate Director,Human Resources,Purchases,"3,937.00",1292586,17/09/2014,A035521,PES Limited
North West Leicestershire District Council,31UH,HRAPBS,Housing,HRA Performance & Business Support,Software Licences,"2,425.00",1289578,24/09/2014,A030422,Hitec Laboratories Ltd TA Ten Software
North West Leicestershire District Council,31UH,EPP,Planning & Development,Environment Planning Policy,Consultancy,"3,970.00",1292897,24/09/2014,A041191,GL Hearn
North West Leicestershire District Council,31UH,HR,Corporate Director,Human Resources,Employee Advertising,910.00,1292898,24/09/2014,A040485,Totaljobs Group Ltd
North West Leicestershire District Council,31UH,ENOT,Street Management,Environment Transport,Purchases,"19,773.52",1292916,24/09/2014,A040946,Hall Fuels (Division of Watson Petroleum
North West Leicestershire District Council,31UH,CDCC,Leisure Centres,Castle Donington Community College,Alternative Fitness Suite,522.58,1292861,24/09/2014,A005413,Elliott Group Limited
North West Leicestershire District Council,31UH,HLC,Leisure Centres,Hermitage Leisure Centre,Contract Payments (Other) Ext,"5,085.00",1292873,24/09/2014,A000958,ESPO
North West Leicestershire District Council,31UH,CULTEV,Leisure & Culture,Cultural Services Arts & Events,Other Miscellaneous Expenses,632.50,1292900,24/09/2014,A040879,Sunshine Events UK Limited
North West Leicestershire District Council,31UH,ENOP,Street Management,Environment Parks,External Materials,684.68,1292956,24/09/2014,A034991,Sherriff Amenity
North West Leicestershire District Council,31UH,ENOT,Street Management,Environment Transport,Purchases,892.35,1292959,24/09/2014,A037391,Emo Oil Limited
North West Leicestershire District Council,31UH,HPLC,Leisure Centres,Hood Park Leisure Centre,Contract Payments (Other) Ext,"11,997.89",1292783,24/09/2014,A000021,ADT Fire And Security
North West Leicestershire District Council,31UH,PROPCL,Property Services,Property Commercial Lettings,Contract Cleaning,531.49,1293073,24/09/2014,A003037,Coalville Cleaning Services
North West Leicestershire District Council,31UH,ENOGT,Street Management,Environment General Technician,Contract Payments (Other) Ext,"61,805.25",1292589,24/09/2014,A000940,Aggregate Industries Uk Ltd
North West Leicestershire District Council,31UH,HRAHM,Housing,HRA Housing Management,General Repairs,"1,889.56",1292832,24/09/2014,A031086,Premier Waste and Recycling
North West Leicestershire District Council,31UH,EBC,Planning & Development,Building Control,Computing,"1,328.00",1293079,24/09/2014,A024994,Resolution Data Management Ltd
North West Leicestershire District Council,31UH,HRATP,Housing,HRA Tenant Participation,Subscriptions,625.00,1292883,24/09/2014,A035594,The East Midlands TP Forum
North West Leicestershire District Council,31UH,ENOT,Street Management,Environment Transport,Training Expenses,553.00,1292957,24/09/2014,A027792,Keith Cook Training Services
North West Leicestershire District Council,31UH,ESS,Street Management,Environment - Street Scene,Operational Equipment,660.00,1293140,24/09/2014,A041765,Ultra Sport Europe
